[Event "*** Titled Tuesday Blitz"]
[Site "Chess.com"]
[Date "2019.09.03"]
[Round "1"]
[White "rikyshi"]
[Black "GMsKoRPioN"]
[Result "1-0"]
[WhiteElo "2206"]
[BlackElo "2556"]
[TimeControl "180+2"]
[EndTime "15:12:47 PDT"]
[Termination "rikyshi won by checkmate"]

1. d4 {[%clk 0:03:00.9]} 1... g6 {[%clk 0:03:00.4]} 2. e4 {[%clk 0:03:00.4]}
2... Bg7 {[%clk 0:03:01.4]} 3. c3 {[%clk 0:02:55.2]} 3... d6 {[%clk 0:03:02.3]}
4. Be3 {[%clk 0:02:55.6]} 4... Nf6 {[%clk 0:03:03.5]} 5. Bd3 {[%clk 0:02:47.8]}
5... O-O {[%clk 0:03:04.2]} 6. h3 {[%clk 0:02:48.5]} 6... Nc6 {[%clk 0:03:03.4]}
7. f4 {[%clk 0:02:48.9]} 7... e5 {[%clk 0:03:03.8]} 8. Nf3 {[%clk 0:02:44.1]}
8... exd4 {[%clk 0:03:02.6]} 9. cxd4 {[%clk 0:02:46]} 9... Nxe4 {[%clk 0:02:58]}
10. Bxe4 {[%clk 0:02:46.3]} 10... Re8 {[%clk 0:02:59.2]} 11. Bxc6 {[%clk
0:02:42.3]} 11... bxc6 {[%clk 0:02:55.7]} 12. Kf2 {[%clk 0:02:42.3]} 12... Rb8
{[%clk 0:02:52.4]} 13. Qd2 {[%clk 0:02:37.7]} 13... c5 {[%clk 0:02:51.9]} 14.
Nc3 {[%clk 0:02:33.4]} 14... cxd4 {[%clk 0:02:53]} 15. Bxd4 {[%clk 0:02:34.3]}
15... Bxd4+ {[%clk 0:02:53.6]} 16. Nxd4 {[%clk 0:02:35.8]} 16... c5 {[%clk
0:02:44.6]} 17. Nc6 {[%clk 0:02:33]} 17... Qb6 {[%clk 0:02:26.8]} 18. Nxb8
{[%clk 0:02:33.2]} 18... c4+ {[%clk 0:02:28]} 19. Kf1 {[%clk 0:02:21.5]} 19...
Bf5 {[%clk 0:02:22]} 20. Qf2 {[%clk 0:01:55.4]} 20... Qxb8 {[%clk 0:02:19.3]}
21. g4 {[%clk 0:01:42.5]} 21... Bd3+ {[%clk 0:02:14.8]} 22. Kg2 {[%clk
0:01:38.7]} 22... d5 {[%clk 0:02:14.7]} 23. Rhe1 {[%clk 0:01:35.8]} 23... Rd8
{[%clk 0:02:14.7]} 24. Rad1 {[%clk 0:01:04.4]} 24... Qb7 {[%clk 0:02:06.5]} 25.
Kh2 {[%clk 0:00:21.7]} 25... d4 {[%clk 0:02:05.5]} 26. Nb1 {[%clk 0:00:21.6]}
26... Qc7 {[%clk 0:02:01.7]} 27. Qg3 {[%clk 0:00:22]} 27... Qb6 {[%clk
0:02:00.6]} 28. Rd2 {[%clk 0:00:22.6]} 28... Qa5 {[%clk 0:02:01.1]} 29. Red1
{[%clk 0:00:22.6]} 29... Qxa2 {[%clk 0:02:01.9]} 30. f5 {[%clk 0:00:23.9]} 30...
Bxb1 {[%clk 0:01:58.2]} 31. f6 {[%clk 0:00:18.8]} 31... Bd3 {[%clk 0:01:51.4]}
32. Qf4 {[%clk 0:00:18.5]} 32... Qa6 {[%clk 0:01:51]} 33. Re1 {[%clk 0:00:16.8]}
33... h6 {[%clk 0:01:49.2]} 34. Rf2 {[%clk 0:00:15.5]} 34... g5 {[%clk
0:01:46.6]} 35. Qe5 {[%clk 0:00:11.1]} 35... Qb6 {[%clk 0:01:42]} 36. h4 {[%clk
0:00:11]} 36... c3 {[%clk 0:01:39.6]} 37. bxc3 {[%clk 0:00:11.7]} 37... dxc3
{[%clk 0:01:41.5]} 38. Rg2 {[%clk 0:00:10.1]} 38... Qd6 {[%clk 0:01:37.1]} 39.
Qxd6 {[%clk 0:00:10.7]} 39... Rxd6 {[%clk 0:01:39]} 40. Rc1 {[%clk 0:00:12]}
40... c2 {[%clk 0:01:39.4]} 41. hxg5 {[%clk 0:00:13.1]} 41... hxg5 {[%clk
0:01:40.6]} 42. Rd2 {[%clk 0:00:14.1]} 42... Rd5 {[%clk 0:01:11.1]} 43. Rcxc2
{[%clk 0:00:13.6]} 43... Be4 {[%clk 0:01:12.2]} 44. Rxd5 {[%clk 0:00:14.2]}
44... Bxd5 {[%clk 0:01:14.1]} 45. Rc5 {[%clk 0:00:15.2]} 45... Be6 {[%clk
0:01:13.3]} 46. Rxg5+ {[%clk 0:00:16.5]} 46... Kh7 {[%clk 0:01:13.5]} 47. Kg3
{[%clk 0:00:17.8]} 47... Kh6 {[%clk 0:01:13.6]} 48. Kf4 {[%clk 0:00:16.9]} 48...
a6 {[%clk 0:01:15]} 49. Ra5 {[%clk 0:00:17.6]} 49... Bc4 {[%clk 0:01:14.7]} 50.
g5+ {[%clk 0:00:18.7]} 50... Kg6 {[%clk 0:01:15.7]} 51. Ra1 {[%clk 0:00:19.8]}
51... Kh7 {[%clk 0:01:05.9]} 52. Rh1+ {[%clk 0:00:18.8]} 52... Kg8 {[%clk
0:01:07.1]} 53. Ke5 {[%clk 0:00:19.2]} 53... Bb3 {[%clk 0:01:07]} 54. Rb1 {[%clk
0:00:17.9]} 54... Bc4 {[%clk 0:01:07]} 55. Kd6 {[%clk 0:00:18]} 55... Kh7 {[%clk
0:01:07.4]} 56. Rg1 {[%clk 0:00:14.8]} 56... Kg6 {[%clk 0:01:08.4]} 57. Ke7
{[%clk 0:00:16.2]} 57... Bb3 {[%clk 0:01:06.7]} 58. Rg3 {[%clk 0:00:16.6]} 58...
Bc4 {[%clk 0:01:07.3]} 59. Kd6 {[%clk 0:00:17.8]} 59... Bb5 {[%clk 0:01:06.6]}
60. Ke5 {[%clk 0:00:17.6]} 60... a5 {[%clk 0:01:06.5]} 61. Kf4 {[%clk
0:00:18.4]} 61... Bd7 {[%clk 0:01:07.4]} 62. Rg1 {[%clk 0:00:16.6]} 62... Kh7
{[%clk 0:01:04.4]} 63. Rh1+ {[%clk 0:00:15.1]} 63... Kg8 {[%clk 0:01:05.5]} 64.
Rd1 {[%clk 0:00:16.1]} 64... Bc6 {[%clk 0:01:01.1]} 65. Rc1 {[%clk 0:00:16.5]}
65... Bd7 {[%clk 0:01:01.6]} 66. Rd1 {[%clk 0:00:17.2]} 66... Bc6 {[%clk
0:01:02.6]} 67. Kf5 {[%clk 0:00:18.3]} 67... a4 {[%clk 0:01:03.3]} 68. g6 {[%clk
0:00:19.3]} 68... fxg6+ {[%clk 0:01:00.4]} 69. Kxg6 {[%clk 0:00:21.2]} 69...
Be8+ {[%clk 0:01:02.2]} 70. Kf5 {[%clk 0:00:20.5]} 70... Bf7 {[%clk 0:01:03.4]}
71. Rd8+ {[%clk 0:00:20.9]} 71... Kh7 {[%clk 0:01:04.5]} 72. Ra8 {[%clk
0:00:21.6]} 72... Bb3 {[%clk 0:01:02.9]} 73. Ra7+ {[%clk 0:00:21.9]} 73... Kh6
{[%clk 0:01:02.4]} 74. Ra6 {[%clk 0:00:14.8]} 74... Kh7 {[%clk 0:01:02.8]} 75.
Ra7+ {[%clk 0:00:15.3]} 75... Kh6 {[%clk 0:01:03.8]} 76. Ra8 {[%clk 0:00:16]}
76... Kh7 {[%clk 0:01:01.7]} 77. Kg5 {[%clk 0:00:17.3]} 77... Bd5 {[%clk
0:00:38.1]} 78. Rxa4 {[%clk 0:00:15.8]} 78... Bf7 {[%clk 0:00:39.4]} 79. Ra7
{[%clk 0:00:15.6]} 79... Kg8 {[%clk 0:00:40.9]} 80. Kf5 {[%clk 0:00:11.2]} 80...
Bb3 {[%clk 0:00:39.3]} 81. Ke5 {[%clk 0:00:07.4]} 81... Kf8 {[%clk 0:00:40.5]}
82. Re7 {[%clk 0:00:07.1]} 82... Ba2 {[%clk 0:00:41.2]} 83. Kf4 {[%clk 0:00:08]}
83... Bb3 {[%clk 0:00:42.1]} 84. Kg5 {[%clk 0:00:09.5]} 84... Bc4 {[%clk
0:00:43.3]} 85. Rc7 {[%clk 0:00:10]} 85... Bb3 {[%clk 0:00:44.3]} 86. Kg6 {[%clk
0:00:11.3]} 86... Ke8 {[%clk 0:00:38.4]} 87. f7+ {[%clk 0:00:10.2]} 87... Kd8
{[%clk 0:00:34.9]} 88. f8=Q+ {[%clk 0:00:10.3]} 88... Kxc7 {[%clk 0:00:36]} 89.
Qc5+ {[%clk 0:00:11]} 89... Kd7 {[%clk 0:00:34.9]} 90. Kf6 {[%clk 0:00:11.7]}
90... Ba4 {[%clk 0:00:32.6]} 91. Qd4+ {[%clk 0:00:11.6]} 91... Ke8 {[%clk
0:00:34]} 92. Qxa4+ {[%clk 0:00:12]} 92... Kd8 {[%clk 0:00:35.9]} 93. Qa7 {[%clk
0:00:09.7]} 93... Kc8 {[%clk 0:00:36.7]} 94. Ke6 {[%clk 0:00:10.8]} 94... Kd8
{[%clk 0:00:37.8]} 95. Qd7# {[%clk 0:00:12]} 1-0

[Event "*** Titled Tuesday Blitz"]
[Site "Chess.com"]
[Date "2019.09.03"]
[Round "2"]
[White "pheonixking2000"]
[Black "Keithonsky"]
[Result "1-0"]
[WhiteElo "2710"]
[BlackElo "2380"]
[TimeControl "180+2"]
[EndTime "15:17:39 PDT"]
[Termination "pheonixking2000 won by checkmate"]

1. a3 {[%clk 0:03:01.9]} 1... Nf6 {[%clk 0:02:59.1]} 2. c4 {[%clk 0:03:02.9]}
2... e6 {[%clk 0:03:00.2]} 3. Nf3 {[%clk 0:03:02.8]} 3... d5 {[%clk 0:03:01.6]}
4. e3 {[%clk 0:03:04.3]} 4... Be7 {[%clk 0:03:02.7]} 5. d4 {[%clk 0:03:04.4]}
5... O-O {[%clk 0:03:04.1]} 6. Nc3 {[%clk 0:03:06.1]} 6... c5 {[%clk 0:02:58.7]}
7. dxc5 {[%clk 0:03:07.1]} 7... Bxc5 {[%clk 0:02:59.6]} 8. b4 {[%clk 0:03:07.7]}
8... Be7 {[%clk 0:03:00.8]} 9. cxd5 {[%clk 0:03:07.5]} 9... exd5 {[%clk
0:02:59.2]} 10. Bb2 {[%clk 0:03:09]} 10... a5 {[%clk 0:02:51.3]} 11. Bb5 {[%clk
0:03:10]} 11... axb4 {[%clk 0:02:51]} 12. axb4 {[%clk 0:03:05.4]} 12... Rxa1
{[%clk 0:02:52.4]} 13. Qxa1 {[%clk 0:03:07.1]} 13... Bxb4 {[%clk 0:02:53.8]} 14.
O-O {[%clk 0:03:09]} 14... Bg4 {[%clk 0:02:49.4]} 15. Ne5 {[%clk 0:03:08.8]}
15... Be6 {[%clk 0:02:50.3]} 16. Rd1 {[%clk 0:03:07.4]} 16... Qc7 {[%clk
0:02:46.8]} 17. Ne2 {[%clk 0:02:57.3]} 17... Bd6 {[%clk 0:02:37.6]} 18. Nf4
{[%clk 0:02:56.8]} 18... Qb6 {[%clk 0:02:29.1]} 19. Bd3 {[%clk 0:02:41.9]} 19...
Nc6 {[%clk 0:02:29]} 20. Nxc6 {[%clk 0:02:37.7]} 20... bxc6 {[%clk 0:02:30.3]}
21. Bxf6 {[%clk 0:02:39.2]} 21... gxf6 {[%clk 0:02:32]} 22. Qxf6 {[%clk
0:02:40.9]} 22... Qd8 {[%clk 0:02:28.8]} 23. Qh6 {[%clk 0:02:39.2]} 23... Bxf4
{[%clk 0:02:29.4]} 24. Qxh7# {[%clk 0:02:39.7]} 1-0

[Event "*** Titled Tuesday Blitz"]
[Site "Chess.com"]
[Date "2019.09.03"]
[Round "2"]
[White "iturrizaga"]
[Black "Malev212"]
[Result "1-0"]
[WhiteElo "2937"]
[BlackElo "2629"]
[TimeControl "180+2"]
[EndTime "15:19:22 PDT"]
[Termination "iturrizaga won by resignation"]

1. c4 {[%clk 0:03:01.9]} 1... e5 {[%clk 0:02:58.8]} 2. g3 {[%clk 0:03:02.8]}
2... g6 {[%clk 0:02:57.5]} 3. Bg2 {[%clk 0:03:03.9]} 3... Bg7 {[%clk 0:02:58.6]}
4. Nc3 {[%clk 0:03:05]} 4... Ne7 {[%clk 0:02:56.9]} 5. e4 {[%clk 0:03:05.5]}
5... O-O {[%clk 0:02:57.6]} 6. d3 {[%clk 0:03:06.7]} 6... Nbc6 {[%clk
0:02:56.3]} 7. Nge2 {[%clk 0:03:08.6]} 7... d6 {[%clk 0:02:52.3]} 8. O-O {[%clk
0:03:10.2]} 8... Nd4 {[%clk 0:02:48.1]} 9. Nxd4 {[%clk 0:03:07.2]} 9... exd4
{[%clk 0:02:46.5]} 10. Ne2 {[%clk 0:03:09.1]} 10... Nc6 {[%clk 0:02:35]} 11. Nf4
{[%clk 0:03:03.9]} 11... Ne5 {[%clk 0:02:16.7]} 12. h3 {[%clk 0:03:05]} 12... c6
{[%clk 0:02:07.2]} 13. b3 {[%clk 0:03:05.8]} 13... f5 {[%clk 0:02:06.6]} 14.
exf5 {[%clk 0:02:43.9]} 14... Bxf5 {[%clk 0:02:08.5]} 15. Bb2 {[%clk 0:02:43.9]}
15... g5 {[%clk 0:01:53]} 16. Nh5 {[%clk 0:02:44.9]} 16... Nxd3 {[%clk
0:01:48.4]} 17. Nxg7 {[%clk 0:02:45.8]} 17... Nxb2 {[%clk 0:01:08.5]} 18. Qxd4
{[%clk 0:02:44.9]} 18... Qf6 {[%clk 0:00:28.6]} 19. Nxf5 {[%clk 0:02:43.6]} 1-0

[Event "*** Titled Tuesday Blitz"]
[Site "Chess.com"]
[Date "2019.09.03"]
[Round "2"]
[White "jefferyx"]
[Black "albano87"]
[Result "1-0"]
[WhiteElo "2948"]
[BlackElo "2039"]
[TimeControl "180+2"]
[EndTime "15:19:26 PDT"]
[Termination "jefferyx won by resignation"]

1. d4 {[%clk 0:03:01.9]} 1... Nf6 {[%clk 0:02:59.5]} 2. c4 {[%clk 0:03:03]} 2...
e6 {[%clk 0:03:00.5]} 3. Nc3 {[%clk 0:03:04.2]} 3... d5 {[%clk 0:03:01.7]} 4.
Bg5 {[%clk 0:03:04.7]} 4... Nbd7 {[%clk 0:03:02.9]} 5. e3 {[%clk 0:03:00.7]}
5... Be7 {[%clk 0:03:03.8]} 6. Rc1 {[%clk 0:02:59]} 6... O-O {[%clk 0:03:04.5]}
7. a3 {[%clk 0:02:57.1]} 7... b6 {[%clk 0:03:02.7]} 8. cxd5 {[%clk 0:02:57.7]}
8... exd5 {[%clk 0:03:04.3]} 9. Bd3 {[%clk 0:02:57.9]} 9... Bb7 {[%clk
0:03:04.8]} 10. Nge2 {[%clk 0:02:59.3]} 10... c5 {[%clk 0:03:06.2]} 11. O-O
{[%clk 0:03:00.4]} 11... h6 {[%clk 0:03:05.8]} 12. Bh4 {[%clk 0:03:01.3]} 12...
Ne4 {[%clk 0:03:07.2]} 13. Bxe7 {[%clk 0:03:01.3]} 13... Qxe7 {[%clk 0:03:08.5]}
14. Ng3 {[%clk 0:02:52.6]} 14... Ndf6 {[%clk 0:03:00]} 15. dxc5 {[%clk
0:02:50.3]} 15... Nxc3 {[%clk 0:03:00]} 16. Rxc3 {[%clk 0:02:49.2]} 16... bxc5
{[%clk 0:02:57.5]} 17. Nf5 {[%clk 0:02:50.1]} 17... Qc7 {[%clk 0:02:58.4]} 18.
b4 {[%clk 0:02:46.1]} 18... c4 {[%clk 0:02:59.3]} 19. Bc2 {[%clk 0:02:32.2]}
19... Qe5 {[%clk 0:02:57]} 20. Qd4 {[%clk 0:02:28.8]} 20... Qe6 {[%clk
0:02:57.8]} 21. a4 {[%clk 0:02:24.7]} 21... Rac8 {[%clk 0:02:57.9]} 22. Qxa7
{[%clk 0:02:24.7]} 22... Bc6 {[%clk 0:02:56.4]} 23. Ne7+ {[%clk 0:02:24.5]}
23... Kh8 {[%clk 0:02:56.1]} 24. Nxc8 {[%clk 0:02:23.1]} 24... Rxc8 {[%clk
0:02:55.8]} 25. Qd4 {[%clk 0:02:22.5]} 25... Bd7 {[%clk 0:02:51.8]} 26. b5
{[%clk 0:02:23.2]} 26... Qd6 {[%clk 0:02:50.7]} 27. h3 {[%clk 0:02:23.1]} 27...
Re8 {[%clk 0:02:40]} 28. Rxc4 {[%clk 0:02:24]} 28... Re5 {[%clk 0:02:39.8]} 29.
b6 {[%clk 0:02:21.9]} 29... Rg5 {[%clk 0:02:40.5]} 30. b7 {[%clk 0:02:12.8]}
30... Bxh3 {[%clk 0:02:40.6]} 31. Rc8+ {[%clk 0:02:13.7]} 31... Ng8 {[%clk
0:02:34]} 32. Be4 {[%clk 0:01:47]} 32... dxe4 {[%clk 0:02:25.4]} 33. Qxd6 {[%clk
0:01:46]} 33... Bxg2 {[%clk 0:02:26.6]} 34. Rxg8+ {[%clk 0:01:46.7]} 1-0

[Event "*** Titled Tuesday Blitz"]
[Site "Chess.com"]
[Date "2019.09.03"]
[Round "2"]
[White "JMatias"]
[Black "FearNoEvil12"]
[Result "1-0"]
[WhiteElo "2385"]
[BlackElo "1986"]
[TimeControl "180+2"]
[EndTime "15:19:36 PDT"]
[Termination "JMatias won by resignation"]

1. e3 {[%clk 0:02:53.4]} 1... a6 {[%clk 0:02:59]} 2. c4 {[%clk 0:02:53]} 2... b6
{[%clk 0:02:59.5]} 3. d4 {[%clk 0:02:52.7]} 3... Bb7 {[%clk 0:03:00.8]} 4. Nc3
{[%clk 0:02:54]} 4... Nf6 {[%clk 0:03:01.7]} 5. Qc2 {[%clk 0:02:53.8]} 5... e6
{[%clk 0:03:02.8]} 6. e4 {[%clk 0:02:50.9]} 6... d6 {[%clk 0:03:04]} 7. Nf3
{[%clk 0:02:46.4]} 7... Nbd7 {[%clk 0:03:05.2]} 8. Be2 {[%clk 0:02:46.4]} 8...
h6 {[%clk 0:03:03.9]} 9. O-O {[%clk 0:02:46.4]} 9... g5 {[%clk 0:03:04.6]} 10.
Re1 {[%clk 0:02:29.8]} 10... g4 {[%clk 0:03:04.6]} 11. Nd2 {[%clk 0:02:24.3]}
11... h5 {[%clk 0:03:05.4]} 12. Nf1 {[%clk 0:02:21.5]} 12... Rg8 {[%clk
0:03:00.6]} 13. e5 {[%clk 0:02:22.5]} 13... g3 {[%clk 0:02:55.2]} 14. hxg3
{[%clk 0:02:15.8]} 14... dxe5 {[%clk 0:02:54.3]} 15. dxe5 {[%clk 0:02:11.8]}
15... Nxe5 {[%clk 0:02:55]} 16. Bxh5 {[%clk 0:02:08.8]} 16... Neg4 {[%clk
0:02:51]} 17. Rxe6+ {[%clk 0:02:01.4]} 17... Kd7 {[%clk 0:02:48.6]} 18. Bxg4
{[%clk 0:01:40]} 18... Nxg4 {[%clk 0:02:46.7]} 19. Re2 {[%clk 0:01:32.2]} 19...
Bd6 {[%clk 0:02:31.7]} 20. Qf5+ {[%clk 0:01:28.5]} 20... Kc6 {[%clk 0:02:20.9]}
21. Qf3+ {[%clk 0:01:27.2]} 21... Kd7 {[%clk 0:02:20.2]} 22. Qxb7 {[%clk
0:01:26.5]} 22... Qf6 {[%clk 0:02:18.2]} 23. Qf3 {[%clk 0:01:12.6]} 23... Qg6
{[%clk 0:02:16.7]} 24. Ne3 {[%clk 0:01:09.9]} 24... Ne5 {[%clk 0:02:09.3]} 25.
Qf5+ {[%clk 0:01:09.3]} 25... Qxf5 {[%clk 0:02:09.3]} 26. Nxf5 {[%clk
0:01:11.2]} 1-0

[Event "*** Titled Tuesday Blitz"]
[Site "Chess.com"]
[Date "2019.09.03"]
[Round "2"]
[White "champ2005"]
[Black "StoreySniper"]
[Result "1-0"]
[WhiteElo "2852"]
[BlackElo "2356"]
[TimeControl "180+2"]
[EndTime "15:19:57 PDT"]
[Termination "champ2005 won by resignation"]

1. e4 {[%clk 0:03:01.4]} 1... g6 {[%clk 0:03:01.9]} 2. d4 {[%clk 0:03:02.1]}
2... Bg7 {[%clk 0:03:03.8]} 3. Nf3 {[%clk 0:03:03.3]} 3... c5 {[%clk 0:03:05.2]}
4. d5 {[%clk 0:03:01.1]} 4... d6 {[%clk 0:03:06]} 5. Nc3 {[%clk 0:03:02]} 5...
Nf6 {[%clk 0:03:07]} 6. Be2 {[%clk 0:03:01.9]} 6... O-O {[%clk 0:03:08]} 7. O-O
{[%clk 0:03:03]} 7... a6 {[%clk 0:03:09.2]} 8. a4 {[%clk 0:03:04.5]} 8... b6
{[%clk 0:03:10.1]} 9. Nd2 {[%clk 0:03:05.1]} 9... Ne8 {[%clk 0:03:10.6]} 10. Nc4
{[%clk 0:03:05.1]} 10... Nd7 {[%clk 0:03:10]} 11. Be3 {[%clk 0:03:02]} 11... Rb8
{[%clk 0:03:08.5]} 12. f4 {[%clk 0:02:56.4]} 12... Nc7 {[%clk 0:03:01.7]} 13.
Qe1 {[%clk 0:02:52.9]} 13... Bb7 {[%clk 0:02:55.1]} 14. Qg3 {[%clk 0:02:43.2]}
14... Ba8 {[%clk 0:02:54.1]} 15. Na3 {[%clk 0:02:34.2]} 15... e6 {[%clk
0:02:47.4]} 16. dxe6 {[%clk 0:02:33.6]} 16... Nxe6 {[%clk 0:02:47.6]} 17. Bxa6
{[%clk 0:02:22.8]} 17... Bxc3 {[%clk 0:02:41.6]} 18. bxc3 {[%clk 0:02:21.6]}
18... Bxe4 {[%clk 0:02:42.5]} 19. f5 {[%clk 0:02:18.6]} 19... Ng7 {[%clk
0:02:37.1]} 20. fxg6 {[%clk 0:01:54.1]} 20... hxg6 {[%clk 0:02:37.4]} 21. Bg5
{[%clk 0:01:55.4]} 21... f6 {[%clk 0:02:27.6]} 22. Bh6 {[%clk 0:01:42]} 22... d5
{[%clk 0:02:23.8]} 23. Bd3 {[%clk 0:01:24.4]} 23... Ne5 {[%clk 0:02:11.3]} 24.
Rae1 {[%clk 0:01:18]} 24... Nf5 {[%clk 0:02:00.6]} 25. Rxf5 {[%clk 0:01:14.2]}
25... Bxf5 {[%clk 0:01:56.5]} 26. Bxf5 {[%clk 0:01:13.2]} 1-0

[Event "*** Titled Tuesday Blitz"]
[Site "Chess.com"]
[Date "2019.09.03"]
[Round "2"]
[White "kinga2008"]
[Black "FairChess_on_YouTube"]
[Result "0-1"]
[WhiteElo "1896"]
[BlackElo "2983"]
[TimeControl "180+2"]
[EndTime "15:20:03 PDT"]
[Termination "FairChess_on_YouTube won by resignation"]

1. e4 {[%clk 0:03:01.9]} 1... c5 {[%clk 0:03:00.1]} 2. Nf3 {[%clk 0:03:02.2]}
2... Nc6 {[%clk 0:03:01.7]} 3. c3 {[%clk 0:03:03.4]} 3... e5 {[%clk 0:03:00.4]}
4. Bd3 {[%clk 0:03:03.2]} 4... Nf6 {[%clk 0:03:00.2]} 5. Bc2 {[%clk 0:02:56.8]}
5... d5 {[%clk 0:03:01.1]} 6. exd5 {[%clk 0:02:57.1]} 6... Qxd5 {[%clk
0:03:01.9]} 7. O-O {[%clk 0:02:58.4]} 7... e4 {[%clk 0:03:01.9]} 8. Re1 {[%clk
0:02:57.6]} 8... Be7 {[%clk 0:03:00]} 9. Nh4 {[%clk 0:02:47.8]} 9... g5 {[%clk
0:02:58.7]} 10. c4 {[%clk 0:02:26.8]} 10... Qd4 {[%clk 0:02:54.9]} 11. Nc3
{[%clk 0:02:00.6]} 11... gxh4 {[%clk 0:02:54.2]} 12. Nxe4 {[%clk 0:01:55.1]}
12... Be6 {[%clk 0:02:50.8]} 13. d3 {[%clk 0:01:53.8]} 13... O-O-O {[%clk
0:02:51.4]} 14. Be3 {[%clk 0:01:51.6]} 14... Qe5 {[%clk 0:02:52.3]} 15. f4
{[%clk 0:01:43.4]} 15... Qf5 {[%clk 0:02:48.6]} 16. d4 {[%clk 0:01:29.6]} 16...
Nxe4 {[%clk 0:02:44.9]} 17. d5 {[%clk 0:01:27.4]} 17... Nb4 {[%clk 0:02:44]} 18.
Bb1 {[%clk 0:01:19.6]} 18... Nxd5 {[%clk 0:02:43.8]} 19. cxd5 {[%clk 0:01:18.8]}
19... Bxd5 {[%clk 0:02:45.7]} 20. Qc2 {[%clk 0:01:14.1]} 20... Rhg8 {[%clk
0:02:45.5]} 21. Bxc5 {[%clk 0:01:13.1]} 21... Bxc5+ {[%clk 0:02:43.3]} 22. Qxc5+
{[%clk 0:01:12.8]} 22... Kb8 {[%clk 0:02:40.9]} 23. Bxe4 {[%clk 0:00:56.5]}
23... Bxe4 {[%clk 0:02:41.6]} 24. Qxf5 {[%clk 0:00:56.9]} 24... Bxf5 {[%clk
0:02:43.5]} 25. Re2 {[%clk 0:00:53]} 25... h3 {[%clk 0:02:41.9]} 26. g3 {[%clk
0:00:52.9]} 26... Rge8 {[%clk 0:02:42.6]} 27. Rxe8 {[%clk 0:00:50.9]} 27... Rxe8
{[%clk 0:02:43.5]} 28. Kf2 {[%clk 0:00:51.8]} 28... Bg4 {[%clk 0:02:44.8]} 29.
Re1 {[%clk 0:00:46.5]} 29... Rxe1 {[%clk 0:02:45.3]} 30. Kxe1 {[%clk 0:00:48.4]}
30... Kc7 {[%clk 0:02:46.7]} 31. Kd2 {[%clk 0:00:50.3]} 31... Kd6 {[%clk
0:02:48.3]} 32. Ke3 {[%clk 0:00:52.1]} 32... Kd5 {[%clk 0:02:50]} 33. Kd3 {[%clk
0:00:53.3]} 33... Bf5+ {[%clk 0:02:49.8]} 34. Ke3 {[%clk 0:00:54.2]} 34... h5
{[%clk 0:02:51.4]} 35. b3 {[%clk 0:00:54.9]} 35... b5 {[%clk 0:02:52.2]} 36. a3
{[%clk 0:00:55.2]} 36... a5 {[%clk 0:02:53.2]} 37. Kf3 {[%clk 0:00:48.5]} 37...
Kd4 {[%clk 0:02:54.1]} 38. g4 {[%clk 0:00:48.1]} 38... hxg4+ {[%clk 0:02:55.3]}
0-1

[Event "*** Titled Tuesday Blitz"]
[Site "Chess.com"]
[Date "2019.09.03"]
[Round "2"]
[White "StephenDedalus83"]
[Black "olksuna"]
[Result "1-0"]
[WhiteElo "2836"]
[BlackElo "2558"]
[TimeControl "180+2"]
[EndTime "15:20:11 PDT"]
[Termination "StephenDedalus83 won by resignation"]

1. g3 {[%clk 0:03:01.9]} 1... d5 {[%clk 0:02:59.6]} 2. Bg2 {[%clk 0:03:00.7]}
2... e6 {[%clk 0:03:00.8]} 3. d3 {[%clk 0:03:01.4]} 3... Nf6 {[%clk 0:03:01.5]}
4. Nd2 {[%clk 0:03:02.2]} 4... c5 {[%clk 0:03:01.6]} 5. e4 {[%clk 0:03:03.2]}
5... Nc6 {[%clk 0:03:02.8]} 6. f4 {[%clk 0:03:04]} 6... g6 {[%clk 0:03:03.2]} 7.
Ne2 {[%clk 0:03:02.6]} 7... Bg7 {[%clk 0:03:04.3]} 8. O-O {[%clk 0:03:01.7]}
8... Ng4 {[%clk 0:03:03.5]} 9. Nf3 {[%clk 0:03:01.1]} 9... O-O {[%clk
0:03:00.1]} 10. e5 {[%clk 0:03:00.1]} 10... f6 {[%clk 0:02:57.8]} 11. h3 {[%clk
0:03:00.5]} 11... Nh6 {[%clk 0:02:58.8]} 12. exf6 {[%clk 0:02:59.6]} 12... Qxf6
{[%clk 0:02:58.5]} 13. g4 {[%clk 0:02:56.8]} 13... Qe7 {[%clk 0:02:58.1]} 14. c3
{[%clk 0:02:53.5]} 14... e5 {[%clk 0:02:56.9]} 15. fxe5 {[%clk 0:02:51.8]} 15...
Nxe5 {[%clk 0:02:57.7]} 16. Nxe5 {[%clk 0:02:52]} 16... Rxf1+ {[%clk 0:02:58.6]}
17. Qxf1 {[%clk 0:02:51.5]} 17... Qxe5 {[%clk 0:03:00.5]} 18. Bf4 {[%clk
0:02:50]} 18... Qe6 {[%clk 0:03:01]} 19. Re1 {[%clk 0:02:50.3]} 19... Nf7 {[%clk
0:03:02]} 20. Ng3 {[%clk 0:02:35.8]} 20... Qc6 {[%clk 0:02:44]} 21. Bxd5 {[%clk
0:02:36.2]} 21... Qxd5 {[%clk 0:02:35.5]} 22. Re8+ {[%clk 0:02:37.4]} 22... Bf8
{[%clk 0:02:36.5]} 23. Bh6 {[%clk 0:02:38.8]} 23... Bf5 {[%clk 0:02:11.6]} 24.
Rxa8 {[%clk 0:02:37.7]} 24... Nxh6 {[%clk 0:02:12.8]} 25. gxf5 {[%clk
0:02:37.7]} 25... Qe5 {[%clk 0:02:07.2]} 26. Qg2 {[%clk 0:02:10.6]} 26... Qe3+
{[%clk 0:01:42.5]} 27. Qf2 {[%clk 0:02:08.6]} 27... Qc1+ {[%clk 0:01:29.9]} 28.
Kg2 {[%clk 0:02:09]} 28... g5 {[%clk 0:01:31.8]} 29. Ne4 {[%clk 0:02:00.7]}
29... Nf7 {[%clk 0:01:32]} 30. Qxc5 {[%clk 0:01:51.4]} 30... Qxb2+ {[%clk
0:01:22.5]} 31. Kg3 {[%clk 0:01:47.3]} 1-0